[Event "Australian-ch 2018"]
[Site "Sydney"]
[Date "2018.01.03"]
[Round "2"]
[White "Nakauchi, Gene"]
[Black "Morris, James"]
[Result "0-1"]
[ECO "C41"]
[WhiteElo "2208"]
[BlackElo "2477"]
[Annotator "RC"]
[PlyCount "96"]
[EventDate "2018.01.02"]
[EventType "tourn"]
[EventCountry "AUS"]
[SourceTitle "playchess.com"]
[Source "ChessBase"]
[SourceQuality "1"]
[TimeControl "40/5400+30:1800+30"]

1. e4 {[%emt 0:00:00]} e5 {[%emt 0:01:01]} 2. Nf3 {[%emt 0:00:19]} d6 {[%emt 0:00:24]} 3. d4 {[%emt 0:01:29]} Nd7 {[%emt 0:00:33]} 4. Bc4 {[%emt 0:03:34]} exd4 {[%emt 0:30:00]} 5. Qxd4 {[%emt 0:03:51]} Ngf6 6. Nc3 {[%emt 0:00:30]} Be7 7. Bxf7+ {[%emt 0:00:30]} Kxf7 8. Ng5+ {[%emt 0:00:30]} Ke8 9. Ne6 {[%emt 0:00:30]} c5 10. Qd1 {[%emt 0:00:30]} Qb6 11. Nxg7+ {[%emt 0:00:30]} Kf7 12. Nf5 {[%emt 0:00:30]} Ne5 13. Nxe7 {[%emt 0:00:30]} Kxe7 14. Bg5 {[%emt 0:00:30]} Be6 15. f4 {[%emt 0:00:30]} Nf7 16. e5 {[%emt 0:00:30]} dxe5 17. fxe5 {[%emt 0:00:30]} Nxg5 18. exf6+ {[%emt 0:00:30]} Kf8 19. Qd2 {[%emt 0:00:30]} Nf7 20. O-O-O {[%emt 0:00:30]} Rg8 21. Rde1 {[%emt 0:00:30]} Qc6 22. Rhf1 {[%emt 0:00:30]} Re8 23. Rf2 {[%emt 0:00:30]} Qd6 24. Qe3 {[%emt 0:00:30]} Bd7 25. Ne4 {[%emt 0:00:30]} Qd4 26. Qf3 {[%emt 0:00:30]} Bc6 27. c3 {[%emt 0:00:30]} Rxe4 28. cxd4 {[%emt 0:00:30]} Rxe1+ 29. Kd2 {[%emt 0:00:30]} Bxf3 30. Kxe1 {[%emt 0:00:30]} Bc6 31. dxc5 {[%emt 0:00:30]} Rxg2 32. Rxg2 {[%emt 0:00:30]} Bxg2 33. Kf2 {[%emt 0:00:30]} Bd5 34. Ke3 {[%emt 0:00:30]} Bxa2 35. Kf4 {[%emt 0:00:30]} Ke8 36. b4 {[%emt 0:00:30]} Kd7 37. b5 {[%emt 0:00:30]} Bc4 38. c6+ {[%emt 0:00:30]} bxc6 39. bxc6+ {[%emt 0:00:30]} Kxc6 40. Ke3 {[%emt 0:00:30]} Kd5 41. Kd2 {[%emt 0:30:30]} Kd4 42. Kc2 {[%emt 0:00:30]} a5 43. Kb2 {[%emt 0:00:30]} a4 44. h4 {[%emt 0:00:30]} Bb3 45. h5 {[%emt 0:00:30]} Kc4 46. h6 {[%emt 0:00:30]} Nxh6 47. Ka3 {[%emt 0:00:30]} Nf7 48. Kb2 {[%emt 0:00:30]} h5 0-1

[Event "Australian-ch 2018"]
[Site "Sydney"]
[Date "2018.01.03"]
[Round "2"]
[White "Loh, Zachary"]
[Black "Willathgamuwa, Rowan"]
[Result "1-0"]
[ECO "A00"]
[WhiteElo "2193"]
[BlackElo "1980"]
[Annotator "ChessBase"]
[PlyCount "45"]
[EventDate "2018.01.02"]
[EventType "tourn"]
[EventCountry "AUS"]
[SourceTitle "playchess.com"]
[Source "ChessBase"]
[SourceQuality "1"]
[TimeControl "40/5400+30:1800+30"]

1. e4 c5 2. d4 cxd4 3. c3 dxc3 4. Nxc3 Nc6 5. Bc4 d6 6. Nf3 a6 7. O-O Nf6 8. Bf4 Bg4 9. h3 Bh5 10. g4 Bg6 11. Qe2 e6 12. Rfd1 Qc7 13. e5 dxe5 14. Nxe5 Qb6 15. Nd7 Nxd7 16. Bxe6 O-O-O 17. Na4 Qb4 18. Bxd7+ Rxd7 19. Qe8+ Rd8 20. Rxd8+ Nxd8 21. Rc1+ Bc5 22. Qe5 Ne6 23. Rxc5+ 1-0

[Event "Australian-ch 2018"]
[Site "Sydney"]
[Date "2018.01.03"]
[Round "2"]
[White "McNamara, Gary"]
[Black "Silver, Dmitri"]
[Result "1-0"]
[ECO "A00"]
[WhiteElo "2134"]
[BlackElo "1905"]
[Annotator "ChessBase"]
[PlyCount "113"]
[EventDate "2018.01.02"]
[EventType "tourn"]
[EventCountry "AUS"]
[SourceTitle "playchess.com"]
[Source "ChessBase"]
[SourceQuality "1"]
[TimeControl "40/5400+30:1800+30"]

1. e4 c5 2. Nf3 d6 3. c3 e6 4. d4 cxd4 5. cxd4 Nf6 6. Nc3 a6 7. Bd3 Be7 8. h3 d5 9. e5 Nfd7 10. Qc2 Nc6 11. a3 Qb6 12. Ne2 Nf8 13. Be3 Bd7 14. b4 Rc8 15. Qb2 Ng6 16. Rb1 Na7 17. Nc3 O-O 18. h4 Rfd8 19. h5 Nf8 20. g4 Bb5 21. Nxb5 Nxb5 22. g5 Rc7 23. O-O Rdc8 24. Rfc1 g6 25. h6 Nd7 26. Rxc7 Rxc7 27. Bd2 Rc8 28. a4 Na7 29. b5 axb5 30. axb5 Qd8 31. Ra1 Ra8 32. Ra2 b6 33. Qa1 Qc7 34. Ne1 Kf8 35. f4 Ke8 36. Kf2 Kd8 37. Kf3 Qb7 38. Nc2 Nb8 39. Ke3 Qd7 40. Ra4 Qb7 41. Qa2 Kd7 42. Kf2 Kd8 43. Ne3 Nd7 44. Be2 Kc8 45. Bf3 Kb8 46. Nxd5 exd5 47. Bxd5 Qc7 48. Bf3 Nc5 49. dxc5 Bxc5+ 50. Kg2 Qd7 51. Bb4 Qd4 52. Bxc5 Qxc5 53. Qxf7 Qc8 54. Qd5 Nc6 55. Rxa8+ Kxa8 56. Qxc6+ Ka7 57. Qa8+ 1-0

[Event "Australian-ch 2018"]
[Site "Sydney"]
[Date "2018.01.03"]
[Round "2"]
[White "Wright, Neil S"]
[Black "Kethro, Michael"]
[Result "1-0"]
[ECO "A00"]
[WhiteElo "2126"]
[BlackElo "2195"]
[Annotator "ChessBase"]
[PlyCount "83"]
[EventDate "2018.01.02"]
[EventType "tourn"]
[EventCountry "AUS"]
[SourceTitle "playchess.com"]
[Source "ChessBase"]
[SourceQuality "1"]
[TimeControl "40/5400+30:1800+30"]

1. e4 c5 2. d4 cxd4 3. c3 Nf6 4. e5 Nd5 5. Nf3 Nc6 6. Bc4 e6 7. O-O Be7 8. Nxd4 Nb6 9. Nxc6 bxc6 10. Bd3 d5 11. Qg4 g6 12. Bh6 Qc7 13. Re1 Bb7 14. Qf4 Bf8 15. Bg5 Nd7 16. Nd2 Bg7 17. Nf3 h6 18. Bh4 g5 19. Nxg5 hxg5 20. Qxg5 Rxh4 21. Qxh4 Bxe5 22. f4 Bf6 23. Qh7 Qxf4 24. Re2 O-O-O 25. Rf1 Qh4 26. Qxf7 Be5 27. Rxe5 Nxe5 28. Qxe6+ Nd7 29. Rf7 Kb8 30. Rxd7 Rxd7 31. Qxd7 Qe1+ 32. Bf1 Qe3+ 33. Kh1 Qf4 34. Qe8+ Kc7 35. Qe7+ Kb8 36. Qe2 Bc8 37. Kg1 Bg4 38. Qd3 Kb7 39. Qa6+ Kc7 40. Qxa7+ Kc8 41. Qd4 Qg5 42. a4 1-0

[Event "Australian-ch 2018"]
[Site "Sydney"]
[Date "2018.01.03"]
[Round "2"]
[White "Willathgamuwa, Kevin"]
[Black "Kargosha, Bahman"]
[Result "1/2-1/2"]
[ECO "A00"]
[WhiteElo "2113"]
[BlackElo "2210"]
[Annotator "ChessBase"]
[PlyCount "75"]
[EventDate "2018.01.02"]
[EventType "tourn"]
[EventCountry "AUS"]
[SourceTitle "playchess.com"]
[Source "ChessBase"]
[SourceQuality "1"]
[TimeControl "40/5400+30:1800+30"]

1. e4 e5 2. Nf3 Nc6 3. d4 exd4 4. Bc4 Nf6 5. e5 d5 6. Bb5 Ne4 7. Nxd4 Bc5 8. O-O O-O 9. Bxc6 bxc6 10. f3 Ba6 11. Re1 f6 12. Be3 fxe5 13. Ne6 Bxe3+ 14. Rxe3 Qe7 15. Nxf8 Qc5 16. Qe1 Rxf8 17. Nd2 Nd6 18. Kh1 e4 19. fxe4 dxe4 20. Nxe4 Nxe4 21. Rxe4 Rf1+ 22. Qxf1 Bxf1 23. Rxf1 h6 24. c4 Qa5 25. a3 Qd2 26. b4 Qd3 27. Rfe1 Qxa3 28. c5 a5 29. bxa5 Qxa5 30. Re5 Qb4 31. h3 Qf4 32. R1e4 Qc1+ 33. Kh2 g5 34. Re8+ Kg7 35. R4e7+ Kf6 36. Re6+ Kf7 37. R6e7+ Kf6 38. Re6+ 1/2-1/2

[Event "Australian-ch 2018"]
[Site "Sydney"]
[Date "2018.01.03"]
[Round "2"]
[White "Winkelman, Albert"]
[Black "Xie, George Wendi"]
[Result "0-1"]
[ECO "B34"]
[WhiteElo "2017"]
[BlackElo "2369"]
[Annotator "ChessBase"]
[PlyCount "88"]
[EventDate "2018.01.02"]
[EventType "tourn"]
[EventCountry "AUS"]
[SourceTitle "playchess.com"]
[Source "ChessBase"]
[SourceQuality "1"]
[TimeControl "40/5400+30:1800+30"]

1. e4 {[%emt 0:00:00]} c5 {[%emt 0:00:39]} 2. Nf3 {[%emt 0:00:00]} Nc6 {[%emt 0:00:07]} 3. d4 {[%emt 0:00:01]} cxd4 {[%emt 0:00:04]} 4. Nxd4 {[%emt 0:00:11]} Nf6 {[%emt 0:00:03]} 5. Nc3 {[%emt 0:00:12]} e5 {[%emt 0:00:03]} 6. Ndb5 {[%emt 0:00:10]} Bb4 {[%emt 0:00:55]} 7. Bg5 {[%emt 0:12:36]} Qa5 {[%emt 0:00:33]} 8. Bxf6 {[%emt 0:01:39]} gxf6 {[%emt 0:00:16]} 9. a3 {[%emt 0:00:58]} Bxc3+ {[%emt 0:00:04]} 10. Nxc3 {[%emt 0:01:42]} Nd4 {[%emt 0:00:18]} 11. Bc4 {[%emt 0:03:06]} Qc5 {[%emt 0:13:02]} 12. Bd5 {[%emt 0:02:13]} d6 {[%emt 0:00:12]} 13. O-O {[%emt 0:00:07]} h5 {[%emt 0:00:04]} 14. Ne2 {[%emt 0:00:34]} Bg4 {[%emt 0:00:06]} 15. Re1 {[%emt 0:04:21]} Rg8 16. c3 Nxe2+ {[%emt 0:26:29]} 17. Rxe2 {[%emt 0:18:44]} Bf3 {[%emt 0:00:03]} 18. g3 {[%emt 0:03:41]} Bxe2 {[%emt 0:17:30]} 19. Qxe2 {[%emt 0:00:09]} Rg5 {[%emt 0:00:01]} 20. b4 {[%emt 0:05:36]} Qb6 {[%emt 0:00:57]} 21. Qc4 {[%emt 0:01:27]} Rg7 {[%emt 0:03:07]} 22. a4 {[%emt 0:03:43]} Rb8 {[%emt 0:00:02]} 23. Qe2 {[%emt 0:13:36]} h4 {[%emt 0:08:40]} 24. a5 {[%emt 0:03:14]} Qc7 {[%emt 0:00:02]} 25. Qe3 {[%emt 0:00:56]} hxg3 {[%emt 0:03:06]} 26. fxg3 {[%emt 0:00:16]} Ke7 {[%emt 0:02:15]} 27. c4 {[%emt 0:00:27]} a6 {[%emt 0:01:38]} 28. Rf1 {[%emt 0:00:39]} Rg6 {[%emt 0:04:51]} 29. Qa7 {[%emt 0:02:21]} Kf8 {[%emt 0:02:31]} 30. Rf5 {[%emt 0:00:43]} Rh6 {[%emt 0:00:16]} 31. Rf2 {[%emt 0:03:57]} Kg7 {[%emt 0:00:16]} 32. Rf1 {[%emt 0:03:09]} Qc8 {[%emt 0:02:58]} 33. Rf2 {[%emt 0:00:23]} Rh8 {[%emt 0:00:08]} 34. Rf5 {[%emt 0:00:36]} Qd7 {[%emt 0:02:40]} 35. Qb6 {[%emt 0:02:57]} Rbc8 {[%emt 0:01:54]} 36. Qa7 {[%emt 0:08:46]} Rh6 {[%emt 0:05:35]} 37. Rf2 {[%emt 0:00:28]} Rh5 {[%emt 0:00:58]} 38. Qb6 {[%emt 0:01:20]} Rc7 {[%emt 0:00:02]} 39. c5 {[%emt 0:01:25]} f5 {[%emt 0:00:31]} 40. exf5 {[%emt 0:01:32]} dxc5 {[%emt 0:31:24]} 41. f6+ {[%emt 0:30:08]} Kg8 {[%emt 0:03:27]} 42. bxc5 {[%emt 0:00:00]} e4 {[%emt 0:00:00]} 43. Bxe4 {[%emt 0:00:00]} Rcxc5 {[%emt 0:00:00]} 44. Qa7 {[%emt 0:00:00]} Qd1+ {[%emt 0:00:00]} 0-1

[Event "Australian-ch 2018"]
[Site "Sydney"]
[Date "2018.01.03"]
[Round "2"]
[White "Hardegen, Andrew"]
[Black "Ferozkohi, Ihsan"]
[Result "0-1"]
[ECO "A00"]
[WhiteElo "1999"]
[BlackElo "2130"]
[Annotator "ChessBase"]
[PlyCount "52"]
[EventDate "2018.01.02"]
[EventType "tourn"]
[EventCountry "AUS"]
[SourceTitle "playchess.com"]
[Source "ChessBase"]
[SourceQuality "1"]
[TimeControl "40/5400+30:1800+30"]

1. d4 Nf6 2. c4 e6 3. Nc3 d5 4. Nf3 Bd6 5. c5 Be7 6. Bf4 O-O 7. e3 a5 8. a3 Nc6 9. Qc2 b6 10. Nb5 bxc5 11. Bxc7 Qd7 12. dxc5 Ne4 13. Rc1 Ba6 14. Bd6 Rfc8 15. Qa4 Na7 16. Bxe7 Nxb5 17. b4 axb4 18. axb4 Qb7 19. Bh4 Nbc3 20. Qb3 Bxf1 21. Rxf1 Rxc5 22. Nd4 Rc4 23. f3 Rxb4 24. Rxc3 Rxb3 25. Rxb3 Ra1+ 26. Ke2 Qa6+ 0-1

[Event "Australian-ch 2018"]
[Site "Sydney"]
[Date "2018.01.03"]
[Round "2"]
[White "Asaka, Samuel"]
[Black "Clarke, Brandon G I"]
[Result "1-0"]
[ECO "A00"]
[WhiteElo "1959"]
[BlackElo "2360"]
[Annotator "ChessBase"]
[PlyCount "43"]
[EventDate "2018.01.02"]
[EventType "tourn"]
[EventCountry "AUS"]
[SourceTitle "playchess.com"]
[Source "ChessBase"]
[SourceQuality "1"]
[TimeControl "40/5400+30:1800+30"]

1. d4 Nf6 2. c4 g6 3. Nc3 Bg7 4. e4 d6 5. Be2 O-O 6. Be3 e5 7. d5 Na6 8. g4 Nc5 9. f3 a5 10. h4 Ne8 11. h5 f5 12. hxg6 hxg6 13. gxf5 gxf5 14. Nh3 Qh4+ 15. Kd2 Qe7 16. Qg1 Nf6 17. Ng5 f4 18. Bf2 Ng4 19. Nh7 Nxf2 20. Qxf2 Rf7 21. Rag1 Nd7 22. Qh2 1-0

[Event "Australian-ch 2018"]
[Site "Sydney"]
[Date "2018.01.03"]
[Round "3"]
[White "Cheng, Bobby"]
[Black "McNamara, Gary"]
[Result "1-0"]
[ECO "A01"]
[WhiteElo "2504"]
[BlackElo "2134"]
[Annotator "ChessBase"]
[PlyCount "51"]
[EventDate "2018.01.02"]
[EventType "tourn"]
[EventCountry "AUS"]
[SourceTitle "playchess.com"]
[Source "ChessBase"]
[SourceQuality "1"]
[TimeControl "40/5400+30:1800+30"]

1. b3 {[%emt 0:00:00]} Nf6 {[%emt 0:01:27]} 2. Bb2 {[%emt 0:00:00]} b6 {[%emt 0:01:41]} 3. d3 {[%emt 0:05:56]} d5 {[%emt 0:02:06]} 4. g3 {[%emt 0:01:59]} Bb7 {[%emt 0:03:02]} 5. Bg2 {[%emt 0:00:07]} g6 {[%emt 0:05:07]} 6. e4 {[%emt 0:06:25]} dxe4 {[%emt 0:16:42]} 7. Nd2 {[%emt 0:00:52]} Rg8 {[%emt 0:06:08]} 8. dxe4 {[%emt 0:07:11]} a5 {[%emt 0:07:03]} 9. Qe2 {[%emt 0:06:04]} a4 {[%emt 0:11:50]} 10. Ngf3 {[%emt 0:04:12]} Nfd7 {[%emt 0:05:40]} 11. O-O {[%emt 0:10:16]} Na6 {[%emt 0:11:06]} 12. Rfd1 {[%emt 0:13:11]} Qc8 {[%emt 0:09:02]} 13. Bh3 {[%emt 0:04:21]} e6 {[%emt 0:05:48]} 14. Ng5 {[%emt 0:01:09]} Bg7 {[%emt 0:04:06]} 15. Qf3 {[%emt 0:02:49]} f5 {[%emt 0:02:44]} 16. Bxg7 {[%emt 0:00:20]} Rxg7 {[%emt 0:00:16]} 17. Qc3 {[%emt 0:04:03]} Re7 {[%emt 0:00:47]} 18. exf5 {[%emt 0:12:25]} gxf5 {[%emt 0:00:12]} 19. Re1 {[%emt 0:00:54]} Nf8 {[%emt 0:02:40]} 20. Bxf5 {[%emt 0:01:32]} Nc5 {[%emt 0:01:32]} 21. b4 {[%emt 0:01:29]} exf5 {[%emt 0:00:43]} 22. Rxe7+ {[%emt 0:00:10]} Kxe7 {[%emt 0:00:12]} 23. bxc5 {[%emt 0:00:36]} bxc5 {[%emt 0:00:59]} 24. Re1+ {[%emt 0:01:54]} Kd6 {[%emt 0:00:56]} 25. Qf6+ {[%emt 0:00:15]} Kd5 {[%emt 0:00:24]} 26. c4# {[%emt 0:00:08]} 1-0

[Event "Australian-ch 2018"]
[Site "Sydney"]
[Date "2018.01.03"]
[Round "3"]
[White "Izzat, Kanan"]
[Black "Dale, Ari"]
[Result "0-1"]
[ECO "E90"]
[WhiteElo "2487"]
[BlackElo "2356"]
[Annotator "ChessBase"]
[PlyCount "74"]
[EventDate "2018.01.02"]
[EventType "tourn"]
[EventCountry "AUS"]
[SourceTitle "playchess.com"]
[Source "ChessBase"]
[SourceQuality "1"]
[TimeControl "40/5400+30:1800+30"]

1. d4 {[%emt 0:00:00]} Nf6 {[%emt 0:02:15]} 2. c4 {[%emt 0:00:00]} g6 {[%emt 0:00:04]} 3. Nc3 {[%emt 0:00:00]} Bg7 {[%emt 0:00:05]} 4. e4 {[%emt 0:00:00]} d6 {[%emt 0:00:09]} 5. Nf3 {[%emt 0:00:00]} O-O {[%emt 0:00:10]} 6. h3 {[%emt 0:00:00]} e5 {[%emt 0:00:22]} 7. d5 {[%emt 0:00:18]} a5 {[%emt 0:00:12]} 8. Be3 {[%emt 0:00:46]} Na6 {[%emt 0:00:51]} 9. g4 {[%emt 0:00:11]} Nc5 {[%emt 0:00:22]} 10. Nd2 {[%emt 0:00:04]} Ne8 {[%emt 0:00:48]} 11. Be2 {[%emt 0:01:30]} f5 {[%emt 0:00:05]} 12. exf5 {[%emt 0:06:05]} gxf5 {[%emt 0:00:28]} 13. Qc2 {[%emt 0:00:38]} Na6 {[%emt 0:03:04]} 14. gxf5 {[%emt 0:25:30]} Nb4 {[%emt 0:06:36]} 15. Qb1 {[%emt 0:19:51]} Bxf5 {[%emt 0:00:13]} 16. Nde4 {[%emt 0:01:04]} Nf6 {[%emt 0:11:22]} 17. Bf3 {[%emt 0:03:01]} c6 {[%emt 0:12:20]} 18. a3 {[%emt 0:02:08]} cxd5 {[%emt 0:02:05]} 19. cxd5 {[%emt 0:00:02]} Nfxd5 {[%emt 0:04:27]} 20. axb4 {[%emt 0:18:11]} Nxe3 {[%emt 0:04:26]} 21. fxe3 {[%emt 0:05:37]} d5 {[%emt 0:11:37]} 22. Nxd5 {[%emt 0:00:34]} Be6 {[%emt 0:02:52]} 23. Qd1 {[%emt 0:11:12]} Qh4+ {[%emt 0:04:56]} 24. Nf2 {[%emt 0:00:45]} e4 {[%emt 0:00:19]} 25. Nf4 {[%emt 0:00:09]} Rad8 {[%emt 0:08:03]} 26. Qc2 {[%emt 0:00:01]} Rxf4 {[%emt 0:01:18]} 27. exf4 {[%emt 0:00:02]} exf3 {[%emt 0:00:13]} 28. Rg1 {[%emt 0:01:53]} Qxf4 {[%emt 0:04:48]} 29. Qc3 {[%emt 0:00:36]} Rd4 {[%emt 0:00:13]} 30. Rxa5 {[%emt 0:02:20]} Kf7 {[%emt 0:00:57]} 31. Rxg7+ {[%emt 0:02:12]} Kxg7 {[%emt 0:00:04]} 32. Rc5 {[%emt 0:00:44]} Kg6 {[%emt 0:03:51]} 33. h4 {[%emt 0:00:28]} Bd5 {[%emt 0:01:46]} 34. h5+ {[%emt 0:00:35]} Kh6 {[%emt 0:00:35]} 35. Kf1 {[%emt 0:00:31]} b6 {[%emt 0:03:25]} 36. Nd3 {[%emt 0:00:31]} Qe3 {[%emt 0:01:41]} 37. Nc1 {[%emt 0:00:30]} Rd1+ {[%emt 0:00:07]} 0-1

[Event "Australian-ch 2018"]
[Site "Sydney"]
[Date "2018.01.03"]
[Round "3"]
[White "Morris, James"]
[Black "Illingworth, Max"]
[Result "0-1"]
[ECO "B91"]
[WhiteElo "2477"]
[BlackElo "2494"]
[Annotator "ChessBase"]
[PlyCount "88"]
[EventDate "2018.01.02"]
[EventType "tourn"]
[EventCountry "AUS"]
[SourceTitle "playchess.com"]
[Source "ChessBase"]
[SourceQuality "1"]
[TimeControl "40/5400+30:1800+30"]

1. e4 {[%emt 0:00:00]} c5 {[%emt 0:00:06]} 2. Nf3 {[%emt 0:00:53]} d6 {[%emt 0:00:05]} 3. d4 {[%emt 0:00:40]} cxd4 {[%emt 0:00:05]} 4. Nxd4 {[%emt 0:00:04]} Nf6 {[%emt 0:00:06]} 5. Nc3 {[%emt 0:00:04]} a6 {[%emt 0:00:02]} 6. g3 {[%emt 0:00:09]} g6 {[%emt 0:00:17]} 7. Bg2 {[%emt 0:00:08]} Bg7 {[%emt 0:00:05]} 8. O-O {[%emt 0:00:04]} O-O {[%emt 0:00:06]} 9. Re1 {[%emt 0:00:14]} Nc6 {[%emt 0:04:57]} 10. Nde2 {[%emt 0:11:13]} Rb8 {[%emt 0:05:19]} 11. Nf4 {[%emt 0:19:10]} b5 {[%emt 0:00:43]} 12. Ncd5 {[%emt 0:05:30]} Nd7 {[%emt 0:00:44]} 13. c3 {[%emt 0:03:26]} e6 {[%emt 0:02:12]} 14. Ne3 {[%emt 0:02:55]} Qc7 {[%emt 0:00:19]} 15. Bd2 {[%emt 0:04:01]} a5 {[%emt 0:05:36]} 16. Rc1 {[%emt 0:01:51]} Ba6 {[%emt 0:01:21]} 17. h4 {[%emt 0:18:43]} Nce5 {[%emt 0:05:10]} 18. Bf1 {[%emt 0:01:37]} Nc5 {[%emt 0:05:10]} 19. f3 {[%emt 0:07:37]} Qa7 20. Qe2 b4 {[%emt 0:01:40]} 21. Qf2 {[%emt 0:03:23]} Bxf1 {[%emt 0:03:54]} 22. Qxf1 {[%emt 0:00:58]} bxc3 {[%emt 0:01:57]} 23. Bxc3 {[%emt 0:00:59]} Na4 {[%emt 0:01:14]} 24. Qf2 {[%emt 0:02:11]} Nxb2 {[%emt 0:06:15]} 25. Qe2 {[%emt 0:02:13]} Nbc4 26. Bxe5 {[%emt 0:00:07]} Nxe5 {[%emt 0:00:46]} 27. Kg2 {[%emt 0:07:07]} Rfc8 28. a4 {[%emt 0:03:36]} Nc6 {[%emt 0:06:47]} 29. Qd3 Nd4 {[%emt 0:02:06]} 30. Ne2 {[%emt 0:00:58]} h5 {[%emt 0:04:28]} 31. Nxd4 {[%emt 0:04:30]} Bxd4 {[%emt 0:02:25]} 32. Nc4 {[%emt 0:00:33]} d5 {[%emt 0:02:35]} 33. exd5 {[%emt 0:00:49]} exd5 {[%emt 0:00:05]} 34. Na3 {[%emt 0:00:06]} Rb2+ {[%emt 0:01:01]} 35. Rc2 Rc3 {[%emt 0:02:45]} 36. Qd2 {[%emt 0:00:58]} Rcxc2 {[%emt 0:00:34]} 37. Nxc2 {[%emt 0:00:02]} Qc5 {[%emt 0:01:47]} 38. Re2 {[%emt 0:00:13]} Qc4 39. Kf1 {[%emt 0:01:53]} Bc3 {[%emt 0:01:31]} 40. Qd1 {[%emt 0:00:32]} Qxa4 41. Qd3 {[%emt 0:30:06]} Bg7 {[%emt 0:33:21]} 42. Ne3 {[%emt 0:00:00]} Qa1+ {[%emt 0:00:00]} 43. Re1 {[%emt 0:00:00]} Qa2 {[%emt 0:00:00]} 44. Qxd5 {[%emt 0:00:00]} Rf2+ {[%emt 0:00:00]} 0-1

[Event "Australian-ch 2018"]
[Site "Sydney"]
[Date "2018.01.03"]
[Round "3"]
[White "Xie, George Wendi"]
[Black "Zhang, Jilin"]
[Result "1-0"]
[ECO "B24"]
[WhiteElo "2369"]
[BlackElo "2267"]
[Annotator "ChessBase"]
[PlyCount "87"]
[EventDate "2018.01.02"]
[EventType "tourn"]
[EventCountry "AUS"]
[SourceTitle "playchess.com"]
[Source "ChessBase"]
[SourceQuality "1"]
[TimeControl "40/5400+30:1800+30"]

1. e4 {[%emt 0:00:00]} c5 {[%emt 0:00:19]} 2. Nc3 {[%emt 0:00:00]} Nc6 {[%emt 0:03:29]} 3. Bb5 {[%emt 0:00:00]} g6 {[%emt 0:01:22]} 4. Bxc6 {[%emt 0:00:00]} dxc6 {[%emt 0:00:11]} 5. d3 {[%emt 0:00:00]} Bg7 {[%emt 0:01:56]} 6. Be3 {[%emt 0:00:22]} b6 {[%emt 0:00:30]} 7. Qd2 {[%emt 0:00:03]} e5 {[%emt 0:06:11]} 8. f4 {[%emt 0:00:07]} exf4 {[%emt 0:13:27]} 9. Bxf4 {[%emt 0:00:08]} Nf6 {[%emt 0:00:16]} 10. Nf3 {[%emt 0:05:40]} O-O {[%emt 0:01:39]} 11. Bh6 {[%emt 0:00:04]} Qe7 {[%emt 0:04:16]} 12. O-O-O {[%emt 0:09:31]} Be6 {[%emt 0:02:44]} 13. h3 {[%emt 0:01:19]} b5 {[%emt 0:04:02]} 14. e5 {[%emt 0:02:31]} Nd7 {[%emt 0:10:17]} 15. Bxg7 {[%emt 0:06:29]} Kxg7 {[%emt 0:00:05]} 16. d4 {[%emt 0:02:58]} Rad8 {[%emt 0:05:21]} 17. Ne4 {[%emt 0:04:23]} cxd4 {[%emt 0:14:10]} 18. Qxd4 {[%emt 0:00:10]} Nb6 {[%emt 0:01:04]} 19. Nd6 {[%emt 0:00:10]} Nc4 {[%emt 0:02:14]} 20. b3 {[%emt 0:06:34]} Nxd6 {[%emt 0:02:19]} 21. exd6+ {[%emt 0:00:05]} Qf6 {[%emt 0:00:02]} 22. Ne5 {[%emt 0:00:04]} Bd5 {[%emt 0:01:03]} 23. Rhf1 {[%emt 0:01:34]} Qg5+ {[%emt 0:00:08]} 24. Kb1 {[%emt 0:02:30]} f6 {[%emt 0:00:33]} 25. Qxa7+ {[%emt 0:07:03]} Kg8 {[%emt 0:00:05]} 26. Ng4 {[%emt 0:00:08]} Rxd6 {[%emt 0:05:17]} 27. Rfe1 {[%emt 0:01:37]} Re6 {[%emt 0:05:02]} 28. Qd7 {[%emt 0:01:00]} Rxe1 {[%emt 0:03:37]} 29. Rxe1 {[%emt 0:00:02]} h5 {[%emt 0:00:13]} 30. Re7 {[%emt 0:01:04]} Bf7 {[%emt 0:00:32]} 31. Nf2 {[%emt 0:03:45]} Qxg2 {[%emt 0:06:32]} 32. Ne4 {[%emt 0:00:06]} Qf1+ {[%emt 0:00:18]} 33. Kb2 {[%emt 0:00:03]} Qf5 {[%emt 0:00:35]} 34. Qxc6 {[%emt 0:03:32]} b4 {[%emt 0:03:14]} 35. Qb7 {[%emt 0:02:01]} Qf4 {[%emt 0:01:47]} 36. Qxb4 {[%emt 0:03:33]} Bd5 {[%emt 0:00:55]} 37. Qd4 {[%emt 0:01:34]} Bxe4 {[%emt 0:00:08]} 38. Qc4+ {[%emt 0:04:02]} Kh8 {[%emt 0:00:21]} 39. Rxe4 {[%emt 0:00:04]} Qd6 {[%emt 0:00:15]} 40. a4 {[%emt 0:00:36]} Kg7 {[%emt 0:32:54]} 41. a5 {[%emt 0:30:25]} f5 {[%emt 0:00:00]} 42. Re6 {[%emt 0:00:00]} Qd7 {[%emt 0:00:00]} 43. a6 {[%emt 0:00:00]} Rf7 {[%emt 0:00:00]} 44. Rb6 {[%emt 0:00:00]} 1-0

[Event "Australian-ch 2018"]
[Site "Sydney"]
[Date "2018.01.03"]
[Round "3"]
[White "O'Connell, Kevin J"]
[Black "Clarke, Brandon G I"]
[Result "0-1"]
[ECO "A00"]
[WhiteElo "2328"]
[BlackElo "2360"]
[Annotator "ChessBase"]
[PlyCount "84"]
[EventDate "2018.01.02"]
[EventType "tourn"]
[EventCountry "AUS"]
[SourceTitle "playchess.com"]
[Source "ChessBase"]
[SourceQuality "1"]
[TimeControl "40/5400+30:1800+30"]

1. d4 Nf6 2. Nf3 g6 3. Bf4 Bg7 4. e3 c5 5. c3 b6 6. h3 Bb7 7. Be2 O-O 8. O-O d5 9. Qb3 Nfd7 10. a4 Nc6 11. a5 c4 12. Qb5 a6 13. Qxd5 Nxa5 14. Qg5 Nb3 15. Ra3 b5 16. Nbd2 h6 17. Qg3 Nxd2 18. Nxd2 e5 19. dxe5 g5 20. Bf3 Bxf3 21. Nxf3 gxf4 22. exf4 Nc5 23. Nd4 Kh7 24. Nf5 Rg8 25. Qf3 Qd3 26. Qh5 Qd7 27. Nd6 Raf8 28. Rd1 Qe6 29. Qe2 f6 30. Qe3 Na4 31. Qe4+ f5 32. Qe2 Rd8 33. Qc2 Bf8 34. g4 Bxd6 35. exd6 Kh8 36. f3 fxg4 37. fxg4 Rxg4+ 38. hxg4 Qxg4+ 39. Kh2 Qh5+ 40. Kg2 Rg8+ 41. Kf1 Qf3+ 42. Ke1 Re8+ 0-1

[Event "Australian-ch 2018"]
[Site "Sydney"]
[Date "2018.01.03"]
[Round "3"]
[White "Brown, Andrew"]
[Black "Loh, Zachary"]
[Result "0-1"]
[ECO "A00"]
[WhiteElo "2293"]
[BlackElo "2193"]
[Annotator "ChessBase"]
[PlyCount "58"]
[EventDate "2018.01.02"]
[EventType "tourn"]
[EventCountry "AUS"]
[SourceTitle "playchess.com"]
[Source "ChessBase"]
[SourceQuality "1"]
[TimeControl "40/5400+30:1800+30"]

1. Nf3 Nf6 2. c4 g6 3. Nc3 Bg7 4. e4 d6 5. d4 O-O 6. Be2 c5 7. d5 e6 8. h3 exd5 9. exd5 Re8 10. O-O a6 11. Bf4 Bf5 12. Nd2 Ne4 13. Ndxe4 Bxe4 14. Re1 Bf5 15. g4 g5 16. gxf5 gxf4 17. f6 Bxf6 18. Bd3 Rxe1+ 19. Qxe1 Bxc3 20. bxc3 Nd7 21. Qb1 Ne5 22. Bxh7+ Kh8 23. Bf5 Qg5+ 24. Kh1 f3 25. Bg4 Nxg4 26. Qg1 f5 27. hxg4 Kg7 28. Qg3 Rh8+ 29. Kg1 Rh4 0-1